Cogmind - Beta 15 @@@ ROGUE MODE // 2025.06.12 @ 11:54:25 Player: Triffids Result: Self-destructed Performance ------------- Evolutions (3) 1500 Regions Visited (5) 1000 Robots Destroyed (17) 85 Value Destroyed (240) 240 Prototype IDs (0) 0 Alien Tech Used (0) 0 Bonus (0) 0 TOTAL SCORE: 2825 Bonus ------- None Cogmind --------- Core Integrity 700/700 Matter 110/300 Energy 49/150 System Corruption 0% Temperature Cool (0) Movement Flying (107) Ox1 Location -7/Factory Parts ------- > --- POWER (1) -------- Micro Nuclear Core > --- PROPULSION (4) --- Flight Unit VTOL Module VTOL Module VTOL Module > --- UTILITY (6) ------ Structural Scanner Improved Sensor Array Signal Interpreter Improved Light Armor Plating System Shield > --- WEAPON (2) ------- Gauss Rifle Gauss Rifle > --- INVENTORY (5) ---- Light Ion Engine Light Ion Engine Sensor Array System Shield Peak State ------------ > --- POWER ------------ Micro Nuclear Core > --- PROPULSION ------- Flight Unit VTOL Module VTOL Module VTOL Module > --- UTILITY ---------- Structural Scanner Improved Sensor Array Signal Interpreter Improved Light Armor Plating System Shield > --- WEAPON ----------- Gauss Rifle Gauss Rifle > --- INVENTORY -------- Light Ion Engine Light Ion Engine Sensor Array System Shield [Rating: 30] Favorites ----------- Power Light Ion Engine Engine Light Ion Engine Power Core Micro Nuclear Core Propulsion Aluminum Leg Leg Aluminum Leg Flight Unit VTOL Module Utility Seismic Detector Device Seismic Detector Storage Small Storage Unit Processor Signal Interpreter Hackware System Shield Protection Improved Light Armor Plating Weapon Small Laser Energy Gun Small Laser Ballistic Gun Assault Rifle Special Melee Weapon Datajack Build | -11 -10 -10 -9 -8 -7 ------- Run | Yrd Mat Min Mat Mat Fac Slots Evolved 6 | . . . 2 2 2 Power . | . . . . . . Propulsion 2 | . . . . 2 . Utility 4 | . . . 2 . 2 Weapon . | . . . . . . Parts Attached 30 | 6 2 . 7 13 2 Power 4 | 1 . . 1 1 1 Engine 3 | 1 . . 1 1 . Core 1 | . . . . . 1 Reactor . | . . . . . . Propulsion 9 | 2 . . 2 5 . Treads . | . . . . . . Leg 2 | 2 . . . . . Wheel . | . . . . . . Hover . | . . . . . . Flight 7 | . . . 2 5 . Utility 8 | 1 1 . 3 2 1 Device 4 | . 1 . 2 1 . Storage 1 | 1 . . . . . Processor 1 | . . . 1 . . Hackware 1 | . . . . . 1 Protection 1 | . . . . 1 . Artifact . | . . . . . . Weapon 9 | 2 1 . 1 5 . Energy Gun 3 | 1 . . 1 1 . Energy Cannon . | . . . . . . Ballistic Gun 5 | 1 . . . 4 . Ballistic Cannon . | . . . . . . Launcher . | . . . . . . Special Weapon . | . . . . . . Impact Weapon . | . . . . . . Slashing Weapon . | . . . . . . Piercing Weapon . | . . . . . . Special Melee Weapon 1 | . 1 . . . . Unidentified Prototypes . | . . . . . . Parts Lost 7 | . . 4 . 3 . Power 1 | . . 1 . . . Propulsion 4 | . . 2 . 2 . Utility . | . . . . . . Weapon 2 | . . 1 . 1 . Highest Loss Streak 4 | . . 4 . 2 . To Critical Strikes . | . . . . . . Average Backups 6 | 3 7 8 4 3 2 Power . | . 1 1 . 1 1 Propulsion . | . . . 1 1 . Utility 2 | . 3 4 . 1 1 Weapon 1 | 1 2 2 1 . . Tool/Special . | . . . . . . Unused Backups 9 | . 4 . 2 1 2 Power 1 | . . . . . 1 Propulsion 2 | . 1 . . 1 . Utility 4 | . 2 . 1 . 1 Weapon 2 | . 1 . 1 . . Tool/Special . | . . . . . . Average Slot Usage (%) 95 | . 99 97 73 98 92 Engine 11 | . 14 13 8 9 7 Leg 17 | . 28 27 . . . Flight 10 | . . . 16 35 30 Device 17 | . 13 14 30 20 15 Storage 8 | . 14 14 . . . Processor 3 | . . . 10 9 7 Protection 1 | . . . . 6 7 Energy Gun 10 | . 14 13 5 6 . Ballistic Gun 10 | . 12 13 . 6 15 Special Melee Weapon 1 | . 1 . 1 4 . Peak Build Rating 30 | 6 8 7 11 24 30 Average Rating 9 | 5 7 6 8 18 27 On Entrance 8 | . 6 7 3 10 24 Naked Turns . | . . . . . . Heaviest Build 16 | 11 12 12 8 16 16 Greatest Support 20 | 20 20 20 8 16 16 Greatest Overweight (x) 4 | 1 . 2 . 4 . Average Overweight (x) . | . . . . . . Largest Inventory Capacity 8 | 8 8 8 8 5 5 Average Capacity 7 | 7 8 8 5 5 5 Most Carried 8 | 6 8 8 7 5 4 Average Carried 6 | 3 7 8 4 3 2 Final Capacity 8 | 8 8 8 5 5 5 Final Carried 8 | 6 8 8 5 3 4 Class Distribution -------------------- 67% | Mutant 29% | Scout Dominant Class ---------------- Mutant | -10/Materials Mutant | -10/Mines Scout | -9/Materials Scout | -8/Materials Scout | -7/Factory Resources | -11 -10 -10 -9 -8 -7 ----------- Run | Yrd Mat Min Mat Mat Fac Matter Collected 575 | 296 61 . 30 188 . Remotely . | . . . . . . Salvage Created 430 | 137 75 . 30 188 . Parts 36 | 9 5 . 1 21 . Haulers Intercepted . | . . . . . . Recyclers Shooed . | . . . . . . Parts Field Recycled . | . . . . . . Retrieved Matter . | . . . . . . Parts Self-Destructed . | . . . . . . Prevented . | . . . . . . Kills | -11 -10 -10 -9 -8 -7 ------- Run | Yrd Mat Min Mat Mat Fac Combat Hostiles Destroyed 11 | . 2 . . 9 . Guns 11 | . 2 . . 9 . Classes Destroyed 6 | 2 3 . 1 . . Tunneler 3 | 3 . . . . . Recycler 1 | 1 . . . . . Operator 1 | . 1 . . . . Watcher 1 | . . . 1 . . Swarmer 9 | . 1 . . 8 . Grunt 2 | . 1 . . 1 . Best Kill Streak 8 | 4 1 . 1 8 . Combat Bots Only 8 | . 1 . . 8 . Max Kills in Single Turn 2 | 1 1 . 1 2 . Gunslinging . | . . . . . . Exploded . | . . . . . . Melee . | . . . . . . Uniques/NPCs Destroyed . | . . . . . . Combat | -11 -10 -10 -9 -8 -7 -------- Run | Yrd Mat Min Mat Mat Fac Hostile Shots Fired 113 | . 25 7 . 81 . Missed 38 | . 9 . . 29 . Hits 75 | . 16 7 . 52 . Projectile 75 | . 16 7 . 52 . AOE 9 | . . 9 . . . Critical Strikes 1 | . . . . 1 . Damage Taken 1175 | . 171 372 . 632 . Core 259 | . 28 108 . 123 . Absorbed by Shields . | . . . . . . Core Remaining (%) 80 | 100 . 45 100 77 . Volleys Fired 52 | 12 12 . 5 23 . Largest 2 | 2 2 . 1 2 . Hottest 90 | 60 60 . 40 90 . Shots Fired 92 | 24 24 . 5 39 . Gun 92 | 24 24 . 5 39 . Cannon . | . . . . . . Launcher . | . . . . . . Special . | . . . . . . Kinetic 58 | 12 12 . . 34 . Thermal 25 | 12 12 . . 1 . Explosive . | . . . . . . Electromagnetic 9 | . . . 5 4 . Robot Hit Streak 14 | 7 14 . 1 10 . Robot Miss Streak 5 | 4 1 . 5 4 . Penetration Max . | . . . . . . Secondary Targets 2 | . . . . 2 . Max Gunslinging Chain 1 | . . . . 1 . Shots Hit Robots 61 | 13 22 . 2 24 . Core Hits 22 | 5 5 . 1 11 . Critical Kills . | . . . . . . Critical Parts Destroyed . | . . . . . . Critical Strikes . | . . . . . . Melee Attacks 10 | . 8 . 1 1 . Impact . | . . . . . . Slashing . | . . . . . . Piercing . | . . . . . . Sneak Attacks 6 | . 4 . 1 1 . Combat Hostiles . | . . . . . . Follow-up Attacks . | . . . . . . Damage Inflicted 874 | 155 197 . 20 502 . Guns 874 | 155 197 . 20 502 . Cannons . | . . . . . . Explosions . | . . . . . . Melee . | . . . . . . Ramming . | . . . . . . Kinetic 657 | 80 107 . . 470 . Thermal 165 | 75 90 . . . . Explosive . | . . . . . . Electromagnetic 52 | . . . 20 32 . Impact . | . . . . . . Slashing . | . . . . . . Piercing . | . . . . . . Highest Corruption 2 | . . . . 2 . Average Corruption 2 | . . . . 2 . Corruption Purged . | . . . . . . Corruption Blocked . | . . . . . . Effects 3 | . . . . 3 . Message Errors 1 | . . . . 1 . Energy Discharges 1 | . . . . 1 . Weapon Failures 1 | . . . . 1 . Overload Shots . | . . . . . . Overflow Damage . | . . . . . . Projectiles . | . . . . . . Explosions . | . . . . . . Melee . | . . . . . . Knockbacks . | . . . . . . Impact . | . . . . . . Kinetic . | . . . . . . Secondary . | . . . . . . Self-Inflicted Damage . | . . . . . . Shots . | . . . . . . Rammed . | . . . . . . Targets Rammed . | . . . . . . Kicked . | . . . . . . Crushed . | . . . . . . Highest Temperature 121 | . 18 . . 121 . Average Temperature 26 | . 12 . . 29 . Received Heat Transfer 288 | . 18 . . 270 . Siege Activations . | . . . . . . Martial Activations . | . . . . . . Shielding Activations . | . . . . . . Robots Disrupted . | . . . . . . Combat Hostiles . | . . . . . . Robots Corrupted . | . . . . . . Combat Hostiles . | . . . . . . Parts Fried . | . . . . . . Impact Corruptions . | . . . . . . Robots Melted . | . . . . . . Combat Hostiles . | . . . . . . Parts Melted 1 | 1 . . . . . Heat Transferred 375 | 175 200 . . . . Parts Sabotaged . | . . . . . . Parts Stolen . | . . . . . . Parts Stripped . | . . . . . . Power Chain Reactions . | . . . . . . Alert | -11 -10 -10 -9 -8 -7 ------- Run | Yrd Mat Min Mat Mat Fac Maximum Alert Level 1 | . . . . 1 . Low Security (%) 91 | 100 100 100 100 55 100 Level 1 8 | . . . . 44 . Level 2 . | . . . . . . Level 3 . | . . . . . . Level 4 . | . . . . . . Level 5 . | . . . . . . High Security . | . . . . . . Max Security . | . . . . . . Peak Influence 275 | 10 36 1 12 275 111 Initial 111 | . . 1 . . 111 Average 27 | 2 7 . 1 122 110 Influence Increases 465 | 20 90 . 19 336 . Destroy 0b10 Robot/C 220 | . 40 . . 180 . Destroy 0b10 Robot/NC 30 | 20 5 . 5 . . Destroy Leader 32 | . 10 . 2 20 . Successful Hack 32 | . 20 . 12 . . Disable Machine 15 | . 15 . . . . Destroy Structure 1 | . . . . 1 . Lose Combat Pursuer 135 | . . . . 135 . Influence Decreases 364 | 20 85 5 19 90 145 Entered New Map 139 | . . 4 . . 135 Time Decay 195 | 20 85 1 19 60 10 Lost Part 30 | . . . . 30 . Squads Dispatched 3 | . 1 . . 2 . Investigation . | . . . . . . Extermination . | . . . . . . Reinforcement 2 | . 1 . . 1 . Assault . | . . . . . . Garrison 1 | . . . . 1 . Intercept . | . . . . . . Searches Triggered . | . . . . . . Construction Impeded . | . . . . . . Haulers Reinforced . | . . . . . . Active Scanning Responses . | . . . . . . Cargo Convoy Interrupts . | . . . . . . Stealth | -11 -10 -10 -9 -8 -7 --------- Run | Yrd Mat Min Mat Mat Fac Distress Signals 3 | . 2 . . 1 . Communications Jammed . | . . . . . . Distress Signals . | . . . . . . Times Spotted 33 | . 6 2 1 24 . Peak Tracking Total 13 | . 4 2 1 13 . Tactical Retreats 3 | . . . . 3 . Traps | -11 -10 -10 -9 -8 -7 ------- Run | Yrd Mat Min Mat Mat Fac Traps Triggered 2 | . 1 . . 1 . Indirectly . | . . . . . . Trap Hack Attempts . | . . . . . . Triggered . | . . . . . . Disarmed . | . . . . . . Reprogrammed . | . . . . . . Reused . | . . . . . . Traps Extracted . | . . . . . . Installed . | . . . . . . Triggered . | . . . . . . Machines | -11 -10 -10 -9 -8 -7 ---------- Run | Yrd Mat Min Mat Mat Fac Machines Disabled 1 | . 1 . . . . Max in Single Turn 1 | . 1 . . . . Machines Repaired . | . . . . . . Machines Dismantled . | . . . . . . Machines Sabotaged . | . . . . . . Overloaded Fab Kills . | . . . . . . Hacking | -11 -10 -10 -9 -8 -7 --------- Run | Yrd Mat Min Mat Mat Fac Machines Accessed 3 | . 2 . 1 . . Terminals 3 | . 2 . 1 . . Fabricators . | . . . . . . Repair Stations . | . . . . . . Recycling Units . | . . . . . . Scanalyzers . | . . . . . . Garrison Access . | . . . . . . Total Hacks 14 | . 11 . 3 . . Successful 9 | . 6 . 3 . . Failed 5 | . 5 . . . . Catastrophic 2 | . 2 . . . . Database Lockouts . | . . . . . . Manual 12 | . 9 . 3 . . Terminals 14 | . 11 . 3 . . Fabricators . | . . . . . . Repair Stations . | . . . . . . Recycling Units . | . . . . . . Scanalyzers . | . . . . . . Garrison Access . | . . . . . . Terminal Hacks 6 | . 4 . 2 . . Record 1 | . 1 . . . . Robot Analysis 2 | . 1 . 1 . . Branch Access Points 1 | . 1 . . . . Terminal Index 2 | . 1 . 1 . . Fabricator Hacks . | . . . . . . Repair Station Hacks . | . . . . . . Recycling Unit Hacks . | . . . . . . Scanalyzer . | . . . . . . Garrison Access Hacks . | . . . . . . Unauthorized Hacks 3 | . 2 . 1 . . Terminals 3 | . 2 . 1 . . Botnet 3 | . 2 . 1 . . Fabricators . | . . . . . . Repair Stations . | . . . . . . Recycling Units . | . . . . . . Scanalyzers . | . . . . . . Garrison Access . | . . . . . . Data Cores Recovered . | . . . . . . Used . | . . . . . . Hacking Detections 3 | . 2 . 1 . . Full Trace Events . | . . . . . . Feedback Events . | . . . . . . Feedback Blocked . | . . . . . . Robot Schematics Acquired . | . . . . . . Robots Built . | . . . . . . Authchips . | . . . . . . Time . | . . . . . . Total Robot Build Rating . | . . . . . . Part Schematics Acquired . | . . . . . . Parts Built . | . . . . . . Authchips . | . . . . . . Time . | . . . . . . Total Part Build Rating . | . . . . . . Parts Repaired . | . . . . . . Time . | . . . . . . Parts Recycled . | . . . . . . Recycled Matter . | . . . . . . Retrieved Matter . | . . . . . . Retrieved Components . | . . . . . . Parts Scanalyzed . | . . . . . . Part Schematics Acquired . | . . . . . . Parts Damaged . | . . . . . . Bothacking | -11 -10 -10 -9 -8 -7 ------------ Run | Yrd Mat Min Mat Mat Fac Used RIF Installer . | . . . . . . Robots Hacked 6 | . 4 . 1 1 . Non-combat 5 | . 3 . 1 1 . Combat 1 | . 1 . . . . Robot Hacks Applied 6 | . 4 . 1 1 . parse_system 4 | . 3 . . 1 . no_distress 1 | . 1 . . . . find_station 1 | . . . 1 . . Relay Couplers Released . | . . . . . . Fabnet Peak Effective % . | . . . . . . Robots Rewired . | . . . . . . Allies Hacked . | . . . . . . Hacks Repelled . | . . . . . . Allies | -11 -10 -10 -9 -8 -7 -------- Run | Yrd Mat Min Mat Mat Fac Total Allies . | . . . . . . Largest Group . | . . . . . . Highest-Rated Group . | . . . . . . Highest-Rated Ally . | . . . . . . Total Orders . | . . . . . . Ally Attacks . | . . . . . . Total Damage . | . . . . . . Kills . | . . . . . . Allies Corrupted . | . . . . . . Allies Melted . | . . . . . . Intel | -11 -10 -10 -9 -8 -7 ------- Run | Yrd Mat Min Mat Mat Fac Active Infowar (turns) 947 | . 391 266 116 154 20 Sensors 287 | . . . 114 153 20 Structural 288 | . . . 114 154 20 Seismic 802 | . 391 266 103 42 . Robot Analysis Total 2 | . 1 . 1 . . Derelict Logs Recovered 1 | . . 1 . . . Drone Launches . | . . . . . . Drone Recoveries . | . . . . . . Exploration | -11 -10 -10 -9 -8 -7 ------------- Run | Yrd Mat Min Mat Mat Fac Turns Passed 1152 | 115 399 266 141 211 20 Spaces Moved 1101 | 57 271 220 225 270 58 Core 55 | 20 . 2 31 2 . Treads . | . . . . . . Legs 526 | 37 271 218 . . . Wheels . | . . . . . . Hover . | . . . . . . Flight 520 | . . . 194 268 58 Fastest Speed 26 | 50 120 120 32 26 27 Average Speed 74 | 101 120 120 34 27 27 Slowest Speed 250 | 120 120 150 50 250 27 Overloaded Moves . | . . . . . . Propulsion Burnouts . | . . . . . . Robots Hopped 9 | . . . . 9 . Potential Cave-ins . | . . . . . . Cave-ins Triggered . | . . . . . . Exploration Rate (%) 23 | 4 35 54 21 28 1 Regions Visited 5 Branch Regions 1 Pre-discovered Areas 1 | . . 1 . . . Known Exits Taken 3 | . 1 . 1 1 . Unknown Exits Taken 2 | 1 . 1 . . . Scrap Searched . | . . . . . . Spaces Dug . | . . . . . . Terrain Destroyed . | . . . . . . Melee . | . . . . . . Projectile . | . . . . . . AOE . | . . . . . . Terrain Rammed . | . . . . . . Walls Destroyed . | . . . . . . Machines Disabled . | . . . . . . Actions | -11 -10 -10 -9 -8 -7 --------- Run | Yrd Mat Min Mat Mat Fac Total 1327 | 88 317 221 283 357 61 Wait 95 | 5 6 1 33 50 . Move 1078 | 56 270 219 224 251 58 Hop 9 | . . . . 9 . Pick Up 26 | 9 9 . 5 2 1 Fast Attach 6 | 3 . . 2 1 . Attach 16 | 3 1 . 6 5 1 Detach 1 | . . . 1 . . Swap 19 | . 5 1 1 11 1 Drop 15 | . 6 . 5 4 . Fire 52 | 12 12 . 5 23 . Melee 10 | . 8 . 1 1 . Ram . | . . . . . . Kick . | . . . . . . Crush . | . . . . . . Escape Stasis . | . . . . . . Rewire . | . . . . . . Trap . | . . . . . . Miscellaneous . | . . . . . . Route ------- -11/Scrapyard -10/Materials (discovered 2 exits: *Min x2) -10/Mines -9/Materials -8/Materials -7/Factory History --------- Turn | Location | Event 11 | -11/Scrapyard | Discovered new exit (range 15) 116 | -11/Scrapyard | Entered Materials 301 | -10/Materials | Build established: Mutant 426 | -10/Materials | Identified exit to Mines 515 | -10/Materials | Entered Mines 698 | -10/Mines | Learned Materials security intel 721 | -10/Mines | Learned location of Storage (-9) 767 | -10/Mines | Assembled infested the area 771 | -10/Mines | Discovered new exit (range 9) 772 | -10/Mines | Assisted by a Guerilla fighting off Assembled 781 | -10/Mines | Entered Materials 781 | -9/Materials | Evolved 2 slots: Utility x2 810 | -9/Materials | Lost 4 parts (1p2n1w) 920 | -9/Materials | Discovered new exit (range 8) 921 | -9/Materials | Identified exit to Materials 922 | -9/Materials | Entered another Materials area 922 | -8/Materials | Evolved 2 slots: Propulsion x2 961 | -8/Materials | Garrison activated, responded to threat 1079 | -8/Materials | Destroyed 8 combat bots 1102 | -8/Materials | Build established: Scout 1102 | -8/Materials | Discovered new exit (range 4) 1133 | -8/Materials | Identified exit to Factory 1133 | -8/Materials | Entered Factory 1133 | -7/Factory | Evolved 2 slots: Utility x2 1153 | -7/Factory | Self-destructed Last Messages --------------- 01102_ ALERT: Hostiles spotted, dispatching reinforcements to Terminal M009. 01102_ O-24 Administrator locks terminal. 01102_ EXIT=FOUND 01106_ E3PHHO>C,V ZMS9VH9HS6PEQZCWS< 01106_ Dropped Minigun. 01108_ Acquired Gauss Rifle. 01110_ Slug penetrates G-47 Trooper. 01127_ System corrupted: Energy discharge (-33). 01127_ VTOL Module destroyed. 01128_ Slug penetrates G-47 Trooper. 01128_ G-47 Trooper destroyed. 01129_ Critical hit (Burn: +37). 01131_ Flight Unit destroyed. 01133_ Acquired 58 matter. 01133_ EXIT=IDENTIFIED: FACTORY PARAMETERS=UTILITY+2 LOCATION=FACTORY GOAL=ESCAPE 01142_ Acquired System Shield. Map ----- +----------------------------------------------------+ | | | | | | | | | | | | | | | | | | | | | | | | | | | | | | | | | | | | | | | | | | | | | | | ???????????????????????######################????? | | ???????????????????????## !##????? | | ???????????????????????##@ ##????? | | ???????????????????????## ##????? | | ???????????????????????## ##????? | | ???????????????????????## """ """ """ """ + ????? | | ???????????????????????## """ """ """ """ ##????? | | ???????????????????????## """ """ """ """ ##????? | | ???????????????????????## ##????? | | ?????????????????#################+##########????? | | ?????????????????############### ########????? | | ?????????????????## # # ??????????? | | ?????????????????## """"""""" # # ??????????? | | ?????????????????## + + ??????????? | | ?????????????????## """"""""" # # ??????????? | | ????????????????### # # | | ????????????????################ ####+######+# | | ????????????????## | | ????????????????## | | ????????????????## | | ???????????????? # | | ???????????????? # | | ???????????????? # ##########+##### ? | | ???????????????? # ## #### ??? | | ???????????????? # #########?????????????????? | | ???????????????? + #########?????????????????? | | ???????????????? # ????????????????????????????? | +----------------------------------------------------+ Best States ------------- Heat Dissipation 34 Energy Generation 10 Energy Capacity 125 Matter Stores 300 Matter Capacity 300 Sight Range 16 Robot Scan Range 15 Terrain Scan Density 10 Armor Coverage 150 Evasion (%) 64 Defensive Hacking 10 Item Schematics ----------------- None Robot Schematics ------------------ None Fabricated ------------ Nothing Repaired ---------- Nothing Alien Tech Used ----------------- None Achievements -------------- None Challenges ------------ None Game ------ Seed UltimateStructuralKatana Manual? 0 Play Time 00:36:21 Cumulative 218.9 hours Start 2025.06.12 @ 10:06:59 End 2025.06.12 @ 11:54:25 Sessions 1 Manual Loads 0 Difficulty Rogue Special Mode None Game No. 381 Rogue 381 Adventurer 0 Explorer 0 Win Type - Total 1 Types 1/0/0/0/0/0/0/0/0/0 Lore% 29 Gallery% 46 Achievement% 38 Wizard Run 0 Options --------- Layout 1 ASCII 0 Keyboard 1 Movement Vi Keybinds 0 Fullscreen 0 Font 24/Smallcaps Map View 59x39 Zoom Use 0% Tactical HUD 1 Map Filters NONE Filters NONE Steam 1 RUN: 0f940888-8342-4d1a-beea-b5c8a65f986f